fUSD/lending_fUSD_20240426
["ID","MTS","AMOUNT","RATE_DAILY","PERIOD"]
[323653682,1714147874876,-500.0,0.00012637,2]
[323653683,1714147874886,-1242.08,0.00012637,2]
[323653684,1714147874898,-500.0,0.00012637,2]
[323653685,1714147874909,-500.0,0.00012637,2]
[323653686,1714147874918,-500.0,0.00012637,2]
[323653687,1714147874928,-500.0,0.00012637,2]
[323653688,1714147874938,-500.0,0.00012637,2]
[323653689,1714147874948,-5440.21,0.00012637,2]
[323653690,1714147874958,-500.0,0.00012637,2]
[323653691,1714147874968,-500.0,0.00012638,2]
[323653692,1714147874978,-500.0,0.00012638,2]
[323653693,1714147874987,-500.0,0.00012638,2]
[323653694,1714147874997,-339.84,0.00012638,2]
[323653695,1714147875007,-500.0,0.00012638,2]
[323653696,1714147875016,-500.0,0.00012638,2]
[323653697,1714147875026,-500.0,0.00012638,2]
[323653698,1714147875036,-500.0,0.00012638,2]
[323653699,1714147875045,-500.0,0.00012638,2]
[323653700,1714147875055,-500.0,0.00012638,2]
[323653701,1714147875065,-500.0,0.00012638,2]
[323653702,1714147875075,-500.0,0.00012638,2]
[323653703,1714147875085,-500.0,0.00012638,2]
[323653704,1714147875095,-500.0,0.00012638,2]
[323653705,1714147875105,-500.0,0.00012638,2]
[323653706,1714147875115,-224.04,0.00012638,2]
[323653707,1714147875125,-545.84,0.00012638,2]
[323653708,1714147875134,-686.34,0.00012638,2]
[323653709,1714147875143,-500.0,0.00012638,2]
[323653710,1714147875153,-500.0,0.00012638,2]
[323653711,1714147875164,-500.0,0.00012638,2]
[323653712,1714147875174,-500.0,0.00012638,2]
[323653713,1714147875183,-500.0,0.00012638,2]
[323653714,1714147875194,-415.65353138,0.00012638,2]
[323653715,1714147875204,-553.25,0.00012638,2]
[323653716,1714147875213,-575.82,0.00012638,2]
[323653717,1714147875223,-500.0,0.00012638,2]
[323653718,1714147875233,-500.0,0.00012638,2]
[323653719,1714147875243,-500.0,0.00012638,2]
[323653720,1714147875253,-506.0,0.00012638,2]
[323653721,1714147875263,-500.0,0.00012638,2]
[323653722,1714147875273,-500.0,0.00012638,2]
[323653723,1714147875282,-399.94,0.00012638,2]
[323653724,1714147875291,-500.0,0.00012638,2]
[323653725,1714147875301,-150.04,0.00012638,2]
[323653726,1714147875311,-500.0,0.00012638,2]
[323653727,1714147875321,-416.6288179,0.00012638,2]
[323653728,1714147875330,-500.0,0.00012638,2]
[323653729,1714147875340,-500.0,0.00012638,2]
[323653730,1714147875349,-500.0,0.00012638,2]
[323653731,1714147875359,-500.0,0.00012638,2]
[323653732,1714147875369,-500.0,0.00012638,2]
[323653733,1714147875378,-500.0,0.00012638,2]
[323653734,1714147875389,-500.0,0.00012638,2]
[323653735,1714147875398,-602.8255936,0.00012638,2]
[323653736,1714147875410,-500.0,0.00012638,2]
[323653737,1714147875420,-500.0,0.00012638,2]
[323653738,1714147875432,-500.0,0.00012638,2]
[323653739,1714147875442,-500.0,0.00012638,2]
[323653740,1714147875451,-500.0,0.00012638,2]
[323653741,1714147875461,-500.0,0.00012638,2]
[323653742,1714147875472,-500.0,0.00012638,2]
[323653743,1714147875482,-293.32,0.00012638,2]
[323653744,1714147875492,-500.0,0.00012638,2]
[323653745,1714147875503,-187.93,0.00012638,2]
[323653746,1714147875513,-500.0,0.00012638,2]
[323653747,1714147875522,-500.0,0.00012638,2]
[323653748,1714147875532,-500.0,0.00012638,2]
[323653749,1714147875542,-500.0,0.00012638,2]
[323653750,1714147875553,-500.0,0.00012638,2]
[323653751,1714147875562,-500.0,0.00012638,2]
[323653752,1714147875572,-500.0,0.00012638,2]
[323653753,1714147875582,-500.0,0.00012638,2]
[323653754,1714147875592,-500.0,0.00012638,2]
[323653755,1714147875601,-500.0,0.00012638,2]
[323653756,1714147875611,-551.42,0.00012638,2]
[323653757,1714147875622,-500.0,0.00012638,2]
[323653758,1714147875632,-500.0,0.00012638,2]
[323653759,1714147875642,-504.46528805,0.00012638,2]
[323653760,1714147875651,-500.0,0.00012638,2]
[323653761,1714147875664,-500.0,0.00012638,2]
[323653762,1714147875673,-500.0,0.00012638,2]
[323653763,1714147875683,-500.0,0.00012638,2]
[323653764,1714147875693,-500.0,0.00012638,2]
[323653765,1714147875703,-500.0,0.00012638,2]
[323653766,1714147875713,-1571.67,0.00012638,2]
[323653767,1714147875723,-500.0,0.00012638,2]
[323653768,1714147875733,-500.0,0.00012638,2]
[323653769,1714147875743,-500.0,0.00012638,2]
[323653770,1714147875753,-500.0,0.00012638,2]
[323653771,1714147875763,-501.26,0.00012638,2]
[323653772,1714147875773,-2602.83,0.00012638,2]
[323653773,1714147875782,-1381.81,0.00012638,2]
[323653774,1714147875793,-500.0,0.00012638,2]
[323653775,1714147875803,-500.0,0.00012638,2]
[323653776,1714147875815,-500.0,0.00012638,2]
[323653777,1714147875826,-500.0,0.00012638,2]
[323653778,1714147875836,-3824.4,0.00012638,2]
[323653779,1714147875846,-651.69,0.00012638,2]
[323653780,1714147875856,-4820.53,0.00012638,2]
[323653781,1714147875866,-500.0,0.00012638,2]
[323653782,1714147875876,-1817.93,0.00012638,2]
[323653783,1714147875886,-500.0,0.00012638,2]
[323653784,1714147875896,-500.0,0.00012638,2]
[323653785,1714147875906,-2274.26,0.00012638,2]
[323653786,1714147875924,-1800.42,0.00012638,2]
[323653787,1714147875934,-500.0,0.00012638,2]
[323653788,1714147875976,-500.0,0.00012638,2]
[323653789,1714147875987,-478.68,0.00012638,2]
[323653790,1714147875998,-847.51,0.00012638,2]
[323653791,1714147876009,-500.0,0.00012638,2]
[323653792,1714147876020,-500.0,0.00012638,2]
[323653793,1714147876030,-500.0,0.00012638,2]
[323653794,1714147876041,-500.0,0.00012638,2]
[323653795,1714147876052,-500.0,0.00012638,2]
[323653796,1714147876062,-2110.83,0.00012638,2]
[323653797,1714147876072,-500.0,0.00012638,2]
[323653798,1714147876082,-4912.03,0.00012638,2]
[323653799,1714147876092,-500.0,0.00012638,2]
[323653800,1714147876101,-500.0,0.00012638,2]
[323653801,1714147876112,-2267.21,0.00012638,2]
[323653802,1714147876122,-500.0,0.00012638,2]
[323653803,1714147876131,-3292.1,0.00012638,2]
[323653804,1714147876142,-4403.85,0.00012638,2]
[323653805,1714147876152,-500.0,0.00012638,2]
[323653806,1714147876166,-1216.81,0.00012638,2]
[323653807,1714147876176,-1167.03,0.00012638,2]
[323653808,1714147876187,-500.0,0.00012638,2]
[323653809,1714147876196,-500.0,0.00012638,2]
[323653810,1714147876206,-500.0,0.00012638,2]
[323653811,1714147876216,-1876.03,0.00012638,2]
[323653812,1714147876228,-2711.28,0.00012638,2]
[323653813,1714147876237,-500.0,0.00012638,2]
[323653814,1714147876248,-501.75,0.00012638,2]
[323653815,1714147876258,-500.0,0.00012638,2]
[323653816,1714147876269,-2315.21,0.00012638,2]
[323653817,1714147876279,-6432.56,0.00012638,2]
[323653818,1714147876290,-500.0,0.00012639,2]
[323653819,1714147876299,-500.0,0.00012639,2]
[323653820,1714147876310,-500.0,0.00012639,2]
[323653821,1714147876320,-500.0,0.00012639,2]
[323653822,1714147876330,-500.0,0.00012639,2]
[323653823,1714147876339,-1237.29,0.00012639,2]
[323653824,1714147876349,-956.3,0.00012639,2]
[323653825,1714147876358,-500.0,0.00012639,2]
[323653826,1714147876371,-500.0,0.00012639,2]
[323653827,1714147876382,-500.0,0.00012639,2]
[323653828,1714147876392,-903.79,0.00012639,2]
[323653829,1714147876401,-705.58,0.00012639,2]
[323653830,1714147876411,-500.0,0.00012639,2]
[323653831,1714147876421,-300.0,0.0001266,2]
[323653832,1714147876431,-1391.0,0.00012705,2]
[323653833,1714147876442,-459.0,0.00012705,2]
[323653834,1714147876453,-2296.0,0.00012705,2]
[323653835,1714147876463,-968.0,0.00012705,2]
[323653836,1714147876473,-469.789,0.00012705,2]
[323653837,1714147876483,-542.0,0.00012705,2]
[323653838,1714147876493,-1254.0,0.00012705,2]
[323653839,1714147876504,-638.539,0.00012705,2]
[323653840,1714147876515,-607.0,0.00012705,2]
[323653841,1714147876525,-435.0,0.00012705,2]
[323653842,1714147876535,-3110.0,0.00012705,2]
[323653843,1714147876545,-443.0,0.00012705,2]
[323653844,1714147876555,-323.076,0.00012705,2]
[323653845,1714147876566,-691.51618702,0.00012767,2]
[323653846,1714147876576,-168.96203917,0.00012868,2]
[323653847,1714147876586,-5045.1206177,0.00012899,2]
[323653848,1714147876595,-365.97088217,0.000129,2]
[323653849,1714147876604,-691.51618702,0.000129,2]
[323653850,1714147876614,-585.26366027,0.000129,2]
[323653851,1714147876624,-161.75706597,0.000129,2]
[323653852,1714147876633,-500.0,0.00012909,2]
[323653853,1714147876642,-8053.11,0.00012909,2]
[323653854,1714147876652,-310.16,0.00012909,2]
[323653855,1714147876664,-1577.81,0.00012909,2]
[323653856,1714147876674,-1157.15,0.00012909,2]
[323653857,1714147876684,-882.97,0.00012909,2]
[323653858,1714147876694,-500.0,0.00012909,2]
[323653859,1714147876704,-500.0,0.00012909,2]
[323653860,1714147876713,-2786.59,0.00012909,2]
[323653861,1714147876802,-1177.64,0.00012909,2]
[323653862,1714147876812,-878.35,0.00012909,2]
[323653863,1714147876824,-560.93,0.00012909,2]
[323653864,1714147876834,-500.0,0.00012909,2]
[323653865,1714147876844,-1136.56,0.00012909,2]
[323653866,1714147876855,-1281.82,0.00012909,2]
[323653867,1714147876865,-2154.74,0.00012909,2]
[323653868,1714147876875,-1966.39,0.00012909,2]
[323653869,1714147876884,-1692.66,0.00012909,2]
[323653870,1714147876894,-500.0,0.00012909,2]
[323653871,1714147876903,-734.3,0.00012909,2]
[323653872,1714147876915,-500.0,0.00012909,2]
[323653873,1714147876926,-2684.49,0.00012909,2]
[323653874,1714147876936,-1353.16,0.00012909,2]
[323653875,1714147876946,-3926.1,0.00012909,2]
[323653876,1714147876956,-1393.7,0.00012909,2]
[323653877,1714147876966,-1490.81,0.00012909,2]
[323653878,1714147876975,-819.29,0.00012909,2]
[323653879,1714147876986,-500.0,0.00012909,2]
[323653880,1714147876996,-807.09,0.00012909,2]
[323653881,1714147877006,-2008.18,0.00012909,2]
[323653882,1714147877016,-4700.21,0.00012909,2]
[323653883,1714147877027,-1706.06,0.00012909,2]
[323653884,1714147877037,-2092.68,0.00012909,2]
[323653885,1714147877046,-2898.09,0.00012909,2]
[323653886,1714147877056,-1106.62,0.00012909,2]
[323653887,1714147877065,-627.48,0.00012909,2]
[323653888,1714147877075,-2557.6,0.00012909,2]
[323653889,1714147877084,-1120.52,0.00012909,2]
[323653890,1714147877094,-854.41,0.00012909,2]
[323653891,1714147877103,-1171.2,0.00012909,2]
[323653892,1714147877112,-726.43,0.00012909,2]
[323653893,1714147877122,-534.26,0.00012909,2]
[323653894,1714147877131,-1092.08,0.00012909,2]
[323653895,1714147877140,-500.0,0.00012909,2]
[323653896,1714147877149,-2568.73,0.00012909,2]
[323653897,1714147877160,-471.89,0.00012909,2]
[323653898,1714147877170,-500.0,0.00012909,2]
[323653899,1714147877179,-2574.97,0.00012909,2]
[323653900,1714147877188,-4363.94,0.00012909,2]
[323653901,1714147877197,-500.0,0.00012909,2]
[323653902,1714147877206,-500.0,0.00012909,2]
[323653903,1714147877215,-500.0,0.00012909,2]
[323653904,1714147877225,-500.0,0.00012909,2]
[323653905,1714147877234,-500.0,0.00012909,2]
[323653906,1714147877243,-500.0,0.00012909,2]
[323653907,1714147877252,-1130.73,0.00012909,2]
[323653908,1714147877262,-2236.83,0.00012909,2]
[323653909,1714147877271,-500.0,0.00012909,2]
[323653910,1714147877280,-500.0,0.00012909,2]
[323653911,1714147877289,-500.0,0.00012909,2]
[323653912,1714147877298,-2696.38,0.00012909,2]
[323653913,1714147877308,-3383.6,0.00012909,2]
[323653914,1714147877318,-500.0,0.00012909,2]
[323653915,1714147877328,-2789.78,0.00012909,2]
[323653916,1714147877337,-500.0,0.00012911,2]
[323653917,1714147877346,-500.0,0.00012911,2]
[323653918,1714147877355,-500.0,0.00012911,2]
[323653919,1714147877364,-500.0,0.00012911,2]
[323653920,1714147877373,-500.0,0.00012911,2]
[323653921,1714147877383,-500.0,0.00012911,2]
[323653922,1714147877392,-750.62,0.00012911,2]
[323653923,1714147877401,-500.0,0.00012911,2]
[323653924,1714147877413,-500.0,0.00012911,2]
[323653925,1714147877422,-500.0,0.00012911,2]
[323653926,1714147877432,-500.0,0.00012911,2]
[323653927,1714147877441,-500.0,0.00012911,2]
[323653928,1714147877450,-500.0,0.00012911,2]
[323653929,1714147877459,-500.0,0.00012911,2]
[323653930,1714147877468,-500.0,0.00012911,2]
[323653931,1714147877477,-500.0,0.00012911,2]
[323653932,1714147877486,-500.0,0.00012911,2]
[323653933,1714147877495,-500.0,0.00012911,2]
[323653934,1714147877505,-585.64441581,0.00012911,2]
[323653935,1714147877514,-500.0,0.00012911,2]
[323653936,1714147877523,-545.71,0.00012911,2]
[323653937,1714147877533,-500.0,0.00012911,2]
[323653938,1714147877542,-195.95,0.00012911,2]
[323653939,1714147877553,-813.78,0.00012911,2]
[323653940,1714147877562,-500.0,0.00012911,2]
[323653941,1714147877572,-500.0,0.00012911,2]
[323653942,1714147877582,-500.0,0.00012911,2]
[323653943,1714147877591,-500.0,0.00012911,2]
[323653944,1714147877600,-500.0,0.00012911,2]
[323653945,1714147877610,-500.0,0.00012911,2]
[323653946,1714147877620,-500.0,0.00012911,2]
[323653947,1714147877630,-500.0,0.00012911,2]
[323653948,1714147877640,-500.0,0.00012911,2]
[323653949,1714147877650,-500.0,0.00012911,2]
[323653950,1714147877662,-745.67,0.00012911,2]
[323653951,1714147877671,-369.95,0.00012911,2]
[323653952,1714147877681,-500.0,0.00012911,2]
[323653953,1714147877690,-500.0,0.00012911,2]
[323653954,1714147877700,-307.7,0.00012911,2]
[323653955,1714147877711,-500.0,0.00012911,2]
[323653956,1714147877721,-500.0,0.00012911,2]
[323653957,1714147877730,-500.0,0.00012911,2]
[323653958,1714147877740,-500.0,0.00012911,2]
[323653959,1714147877751,-500.0,0.00012911,2]
[323653960,1714147877761,-273.33,0.00012911,2]
[323653961,1714147877770,-502.26,0.00012911,2]
[323653962,1714147877780,-500.0,0.00012911,2]
[323653963,1714147877789,-500.0,0.00012911,2]
[323653964,1714147877799,-500.0,0.00012911,2]
[323653965,1714147877811,-533.37,0.00012911,2]
[323653966,1714147877820,-518.32744216,0.00012911,2]
[323653967,1714147877829,-500.0,0.00012911,2]
[323653968,1714147877839,-500.0,0.00012911,2]
[323653969,1714147877849,-500.0,0.00012911,2]
[323653970,1714147877860,-500.0,0.00012911,2]
[323653971,1714147877870,-500.0,0.00012911,2]
[323653972,1714147877880,-500.0,0.00012911,2]
[323653973,1714147877889,-500.0,0.00012911,2]
[323653974,1714147877900,-500.0,0.00012911,2]
[323653975,1714147877913,-500.0,0.00012911,2]
[323653976,1714147877923,-500.0,0.00012911,2]
[323653977,1714147877933,-500.0,0.00012911,2]
[323653978,1714147877944,-500.0,0.00012911,2]
[323653979,1714147877955,-276.05648307,0.00012911,2]
[323653980,1714147877965,-500.0,0.00012911,2]
[323653981,1714147877975,-500.0,0.00012911,2]
[323653982,1714147877985,-500.0,0.00012911,2]
[323653983,1714147877995,-500.0,0.00012911,2]
[323653984,1714147878006,-756.36,0.00012911,2]
[323653985,1714147878016,-500.0,0.00012911,2]
[323653986,1714147878027,-1209.02,0.00012911,2]
[323653987,1714147878039,-550.68343928,0.00012911,2]
[323653988,1714147878048,-500.0,0.00012911,2]
[323653989,1714147878058,-500.0,0.00012911,2]
[323653990,1714147878068,-500.0,0.00012911,2]
[323653991,1714147878078,-500.0,0.00012911,2]
[323653992,1714147878090,-739.64,0.00012911,2]
[323653993,1714147878102,-1244.44,0.00012911,2]
[323653994,1714147878111,-500.0,0.00012911,2]
[323653995,1714147878122,-500.0,0.00012911,2]
[323653996,1714147878132,-762.64,0.00012911,2]
[323653997,1714147878143,-1138.74,0.00012911,2]
[323653998,1714147878153,-500.0,0.00012911,2]
[323653999,1714147878166,-500.0,0.00012911,2]
[323654000,1714147878176,-683.13,0.00012911,2]
[323654001,1714147878186,-500.0,0.00012911,2]
[323654002,1714147878197,-500.0,0.00012911,2]
[323654003,1714147878207,-504.30538713,0.00012911,2]
[323654004,1714147878218,-555.17,0.00012911,2]
[323654005,1714147878229,-500.0,0.00012911,2]
[323654006,1714147878240,-500.0,0.00012911,2]
[323654007,1714147878250,-500.0,0.00012911,2]
[323654008,1714147878259,-500.0,0.00012911,2]
[323654009,1714147878269,-500.0,0.00012911,2]
[323654010,1714147878279,-296.1,0.00012911,2]
[323654011,1714147878288,-500.0,0.00012911,2]
[323654012,1714147878298,-158.2430931,0.00012911,2]
[323654013,1714147878308,-717.29,0.00012911,2]
[323654014,1714147878318,-500.0,0.00012911,2]
[323654015,1714147878328,-500.0,0.00012911,2]
[323654016,1714147878339,-500.0,0.00012911,2]
[323654017,1714147878349,-500.0,0.00012911,2]
[323654018,1714147878359,-500.0,0.00012911,2]
[323654019,1714147878370,-500.0,0.00012911,2]
[323654020,1714147878381,-500.0,0.00012911,2]
[323654021,1714147878391,-500.0,0.00012911,2]
[323654022,1714147878401,-500.0,0.00012911,2]
[323654023,1714147878414,-854.98,0.00012911,2]
[323654024,1714147878425,-500.0,0.00012911,2]
[323654025,1714147878435,-273.56,0.00012911,2]
[323654026,1714147878447,-1204.53,0.00012911,2]
[323654027,1714147878457,-500.0,0.00012911,2]
[323654028,1714147878468,-635.39,0.00012911,2]
[323654029,1714147878478,-568.75,0.00012911,2]
[323654030,1714147878489,-500.0,0.00012911,2]
[323654031,1714147878499,-500.0,0.00012911,2]
[323654032,1714147878510,-500.0,0.00012911,2]
[323654033,1714147878520,-614.69,0.00012911,2]
[323654034,1714147878530,-500.0,0.00012911,2]
[323654035,1714147878541,-500.0,0.00012911,2]
[323654036,1714147878551,-500.0,0.00012911,2]
[323654037,1714147878562,-500.0,0.00012911,2]
[323654038,1714147878573,-500.0,0.00012911,2]
[323654039,1714147878583,-500.0,0.00012911,2]
[323654040,1714147878593,-500.0,0.00012911,2]
[323654041,1714147878604,-1202.3,0.00012911,2]
[323654042,1714147878614,-500.0,0.00012911,2]
[323654043,1714147878623,-169.25964166,0.00012911,2]
[323654044,1714147878633,-1182.99,0.00012911,2]
[323654045,1714147878643,-500.0,0.00012911,2]
[323654046,1714147878653,-521.84062366,0.00012911,2]
[323654047,1714147878666,-500.0,0.00012911,2]
[323654048,1714147878676,-500.0,0.00012911,2]
[323654049,1714147878686,-500.0,0.00012911,2]
[323654050,1714147878697,-868.84,0.00012911,2]
[323654051,1714147878711,-500.0,0.00012911,2]
[323654052,1714147878721,-542.98951507,0.00012911,2]
[323654053,1714147878731,-500.0,0.00012911,2]
[323654054,1714147878740,-500.0,0.00012911,2]
[323654055,1714147878750,-1601.72,0.00012911,2]
[323654056,1714147878761,-505.66,0.00012911,2]
[323654057,1714147878772,-500.0,0.00012911,2]
[323654058,1714147878782,-500.0,0.00012911,2]
[323654059,1714147878793,-500.0,0.00012911,2]
[323654060,1714147878803,-500.0,0.00012911,2]
[323654061,1714147878815,-909.37,0.00012911,2]
[323654062,1714147878826,-500.0,0.00012911,2]
[323654063,1714147878836,-500.0,0.00012911,2]
[323654064,1714147878847,-500.0,0.00012911,2]
[323654065,1714147878859,-500.0,0.00012911,2]
[323654066,1714147878869,-500.0,0.00012911,2]
[323654067,1714147878878,-500.0,0.00012911,2]
[323654068,1714147878890,-500.0,0.00012911,2]
[323654069,1714147878901,-503.52107959,0.00012911,2]
[323654070,1714147878915,-500.0,0.00012911,2]
[323654071,1714147878926,-851.73,0.00012911,2]
[323654072,1714147878937,-500.0,0.00012911,2]
[323654073,1714147878947,-2988.74,0.00012911,2]
[323654074,1714147878956,-500.0,0.00012911,2]
[323654075,1714147878966,-504.89658962,0.00012911,2]
[323654076,1714147878976,-500.0,0.00012911,2]
[323654077,1714147878987,-500.0,0.00012911,2]
[323654078,1714147878998,-500.0,0.00012911,2]
[323654079,1714147879008,-9775.92,0.00012911,2]
[323654080,1714147879018,-500.0,0.00012911,2]
[323654081,1714147879029,-500.0,0.00012911,2]
[323654082,1714147879039,-500.0,0.00012911,2]
[323654083,1714147879049,-500.0,0.00012911,2]
[323654084,1714147879059,-6412.35,0.00012911,2]
[323654085,1714147879070,-1115.33,0.00012911,2]
[323654086,1714147879081,-500.0,0.00012911,2]
[323654087,1714147879092,-2967.3,0.00012911,2]
[323654088,1714147879103,-2437.3,0.00012911,2]
[323654089,1714147879113,-500.0,0.00012911,2]
[323654090,1714147879123,-500.0,0.00012911,2]
[323654091,1714147879133,-1005.66,0.00012911,2]
[323654092,1714147879145,-500.0,0.00012911,2]
[323654093,1714147879156,-500.0,0.00012911,2]
[323654094,1714147879171,-500.0,0.00012911,2]
[323654095,1714147879181,-500.0,0.00012911,2]
[323654096,1714147879193,-500.0,0.00012911,2]
[323654097,1714147879204,-610.55,0.00012911,2]
[323654098,1714147879214,-500.0,0.00012911,2]
[323654099,1714147879224,-486.57078771,0.00012911,2]
[323654100,1714147879235,-3416.44,0.00012911,2]
[323654101,1714147879245,-500.0,0.00012911,2]
[323654102,1714147879255,-500.0,0.00012911,2]
[323654103,1714147879265,-500.0,0.00012911,2]
[323654104,1714147879275,-500.0,0.00012911,2]
[323654105,1714147879285,-500.0,0.00012911,2]
[323654106,1714147879295,-7620.2,0.00012911,2]
[323654107,1714147879306,-500.0,0.00012911,2]
[323654108,1714147879317,-500.0,0.00012911,2]
[323654109,1714147879328,-1325.54,0.00012911,2]
[323654110,1714147879340,-500.0,0.00012911,2]
[323654111,1714147879351,-500.0,0.00012911,2]
[323654112,1714147879362,-500.0,0.00012911,2]
[323654113,1714147879373,-5249.74,0.00012911,2]
[323654114,1714147879386,-500.0,0.00012911,2]
[323654115,1714147879397,-500.0,0.00012911,2]
[323654116,1714147879408,-723.51,0.00012911,2]
[323654117,1714147879426,-500.0,0.00012911,2]
[323654118,1714147879436,-3374.18,0.00012911,2]
[323654119,1714147879446,-500.0,0.00012911,2]
[323654120,1714147879457,-1435.87,0.00012911,2]
[323654121,1714147879467,-664.63,0.00012911,2]
[323654122,1714147879477,-500.0,0.00012911,2]
[323654123,1714147879488,-172.02876924,0.00012911,2]
[323654124,1714147879498,-500.0,0.00012911,2]
[323654125,1714147879508,-500.0,0.00012911,2]
[323654126,1714147879518,-500.0,0.00012911,2]
[323654127,1714147879529,-500.0,0.00012911,2]
[323654128,1714147879541,-500.0,0.00012911,2]
[323654129,1714147879551,-500.0,0.00012911,2]
[323654130,1714147879561,-11147.72,0.00012911,2]
[323654131,1714147879571,-500.0,0.00012911,2]
[323654132,1714147879581,-500.0,0.00012911,2]
[323654133,1714147879591,-500.0,0.00012911,2]
[323654134,1714147879602,-500.0,0.00012911,2]
[323654135,1714147879612,-500.0,0.00012911,2]
[323654136,1714147879622,-500.0,0.00012911,2]
[323654137,1714147879631,-500.0,0.00012911,2]
[323654138,1714147879641,-500.0,0.00012911,2]
[323654139,1714147879651,-500.0,0.00012911,2]
[323654140,1714147879664,-500.0,0.00012911,2]
[323654141,1714147879675,-10840.8,0.00012911,2]
[323654142,1714147879685,-500.0,0.00012911,2]
[323654143,1714147879695,-500.0,0.00012911,2]
[323654144,1714147879705,-1978.97,0.00012911,2]
[323654145,1714147879714,-500.0,0.00012911,2]
[323654146,1714147879724,-500.0,0.00012911,2]
[323654147,1714147879734,-500.0,0.00012911,2]
[323654148,1714147879745,-500.0,0.00012911,2]
[323654149,1714147879755,-822.01,0.00012911,2]
[323654150,1714147879765,-573.66,0.00012911,2]
[323654151,1714147879774,-1061.92,0.00012911,2]
[323654152,1714147879784,-500.0,0.00012911,2]
[323654153,1714147879795,-500.0,0.00012911,2]
[323654154,1714147879805,-500.0,0.00012911,2]
[323654155,1714147879817,-500.0,0.00012911,2]
[323654156,1714147879830,-500.0,0.00012911,2]
[323654157,1714147879840,-551.77,0.00012911,2]
[323654158,1714147879851,-500.0,0.00012911,2]
[323654159,1714147879861,-500.0,0.00012911,2]
[323654160,1714147879871,-521.89643997,0.00012911,2]
[323654161,1714147879881,-1364.92,0.00012911,2]
[323654162,1714147879890,-1601.26,0.00012911,2]
[323654163,1714147879901,-500.0,0.00012911,2]
[323654164,1714147879914,-806.46,0.00012911,2]
[323654165,1714147879924,-500.0,0.00012911,2]
[323654166,1714147879934,-2366.13,0.00012911,2]
[323654167,1714147879944,-1809.35,0.00012911,2]
[323654168,1714147879954,-678.35,0.00012911,2]
[323654169,1714147879964,-500.0,0.00012911,2]
[323654170,1714147879974,-500.0,0.00012911,2]
[323654171,1714147879984,-500.0,0.00012911,2]
[323654172,1714147879993,-546.67,0.00012911,2]
[323654173,1714147880003,-2228.46,0.00012911,2]
[323654174,1714147880013,-500.0,0.00012911,2]
[323654175,1714147880023,-500.0,0.00012911,2]
[323654176,1714147880033,-500.0,0.00012911,2]
[323654177,1714147880043,-1118.0,0.00012911,2]
[323654178,1714147880052,-348.0,0.00012911,2]
[323654179,1714147880062,-500.0,0.00012911,2]
[323654180,1714147880072,-1242.08,0.00012911,2]
[323654181,1714147880082,-500.0,0.00012911,2]